bitfinex-derivatives/quotes_SOLF0:USTF0_20250404
["timestamp","ask_amount","ask_price","bid_price","bid_amount"]
[1743742244406,8.6982,115.01,114.97,41.26585182]
[1743742244407,18.70355182,115.02,115.0,8.6983]
[1743742244902,8.6982,115.01,114.99,8.6993]
[1743742246204,18.70405182,115.01,114.99,8.6993]
[1743742246598,8.6989,115.0,114.98,8.7001]
[1743742247906,18.70445182,115.01,114.98,8.7001]
[1743742248811,18.70445182,115.01,114.99,8.6995]
[1743742249009,18.70445182,115.01,114.96,10.00585182]
[1743742249203,10.00585182,115.0,114.96,10.00585182]
[1743742249401,10.00585182,115.0,114.98,8.6997]
[1743742249608,10.00585182,115.0,114.96,10.00585182]
[1743742250804,10.00585182,115.0,114.99,8.6997]
[1743742252210,8.7619019,115.01,115.0,8.6989]
[1743742252404,18.76775372,115.01,115.0,8.6989]
[1743742253205,10.06955372,115.01,115.0,8.6989]
[1743742255609,10.06955372,115.01,114.94,17.4062]
[1743742255814,10.00585182,114.99,114.95,41.26585182]
[1743742256009,10.06609963,114.99,114.95,41.26585182]
[1743742256211,10.06609963,114.99,114.98,8.7004]
[1743742257015,0.06024781,114.99,114.98,8.7004]
[1743742261012,0.06024781,114.99,114.98,18.70625182]
[1743742263211,10.00585182,115.03,114.98,10.00585182]
[1743742263516,10.00585182,115.04,115.0,10.00585182]
[1743742263717,10.00585182,115.04,115.0,41.26585182]
[1743742264118,10.8826,115.05,115.03,8.6962]
[1743742264316,10.00585182,115.04,115.03,8.6962]
[1743742264617,10.00585182,115.04,115.03,8.75644781]
[1743742266514,10.06744092,115.05,115.04,8.6959]
[1743742266707,0.0615891,115.05,115.04,8.6959]
[1743742266910,10.06744092,115.05,115.04,8.6959]
[1743742268323,10.06744092,115.05,115.03,8.75654781]
[1743742268512,10.00585182,115.04,115.03,0.06024781]
[1743742268712,10.00585182,115.04,114.98,43.63315182]
[1743742268911,10.00585182,115.02,115.0,8.6983]
[1743742269709,41.26585182,115.01,114.93,43.93858271]
[1743742270015,10.00585182,114.94,114.93,43.93858271]
[1743742270213,41.26585182,114.94,114.91,8.7053]
[1743742270415,10.00585182,114.93,114.9,302.36635855]
[1743742270722,31.26,114.94,114.9,302.36635855]
[1743742270723,10.00585182,114.92,114.9,302.36635855]
[1743742271014,31.26,114.91,114.9,302.36635855]
[1743742272220,31.26,114.91,114.9,311.07285855]
[1743742273319,31.26,114.91,114.9,8.7065]
[1743742274721,0.05996332,114.92,114.9,8.7065]
[1743742274918,40.02496332,114.92,114.9,8.7065]
[1743742276021,8.76496332,114.92,114.9,8.7065]
[1743742276221,40.02496332,114.92,114.9,8.7065]
[1743742276521,8.76496332,114.92,114.9,8.7065]
[1743742276723,8.76496332,114.92,114.89,8.7068]
[1743742276923,40.02496332,114.92,114.89,8.7068]
[1743742277120,31.31996332,114.92,114.88,10.00585182]
[1743742277320,31.31996332,114.92,114.89,8.7071]
[1743742277822,40.02506332,114.92,114.89,8.7069]
[1743742278725,8.76506332,114.92,114.89,8.7069]
[1743742279123,40.04506332,114.92,114.89,8.7069]
[1743742279820,40.04506332,114.92,114.9,8.7065]
[1743742280021,10.00585182,114.91,114.87,12.23335182]
[1743742280219,10.00585182,114.91,114.87,10.00585182]
[1743742280423,10.00585182,114.91,114.86,10.00585182]
[1743742280622,8.7068,114.9,114.88,8.7078]
[1743742280820,8.7676147,114.9,114.88,8.7078]
[1743742281926,0.0608147,114.9,114.88,8.7078]
[1743742284026,0.0608147,114.9,114.89,8.7072]
[1743742286135,8.7676147,114.9,114.88,8.7076]
[1743742286333,18.77346652,114.9,114.88,8.7076]
[1743742287529,0.0608147,114.9,114.89,8.7072]
[1743742287732,0.0608147,114.9,114.86,10.00585182]
[1743742288034,0.0608147,114.9,114.87,8.7082]
[1743742288230,0.0608147,114.9,114.86,10.00585182]
[1743742288632,18.77346652,114.9,114.88,8.7077]
[1743742290437,0.0608147,114.9,114.89,8.7072]
[1743742291226,8.7673147,114.9,114.88,8.7075]
[1743742291937,0.0608147,114.9,114.89,8.7072]
[1743742293328,0.0608147,114.9,114.86,10.00585182]
[1743742293534,10.06666652,114.9,114.85,10.00585182]
[1743742293934,8.7075,114.89,114.87,8.7083]
[1743742294237,8.7075,114.89,114.85,10.00585182]
[1743742294238,10.06666652,114.9,114.85,10.00585182]
[1743742294544,0.0608147,114.9,114.89,8.7072]
[1743742305359,1.47e-05,114.9,114.89,18.71305182]
[1743742320570,18.70825182,114.96,114.94,8.7032]
[1743742320873,8.7027,114.95,114.92,10.00585182]
[1743742321172,8.7027,114.95,114.93,8.7037]
[1743742321673,8.75818972,114.95,114.93,8.7645147]
[1743742323275,8.75818972,114.95,114.94,8.7034]
[1743742323474,0.05548972,114.95,114.94,8.7034]
[1743742325977,8.75818972,114.95,114.93,8.7646147]
[1743742327876,8.75818972,114.95,114.94,8.7034]
[1743742328277,0.05548972,114.95,114.94,8.7034]
[1743742329275,10.06134154,114.95,114.88,2.3908]
[1743742329478,10.00585182,114.93,114.88,12.39665182]
[1743742329676,10.00585182,114.93,114.88,10.00585182]
[1743742330080,8.7056,114.92,114.89,8.7066]
[1743742330281,18.71145182,114.92,114.89,8.7066]
[1743742330482,18.7711936,114.92,114.89,8.7066]
[1743742332184,10.00585182,114.91,114.88,8.7076]
[1743742332681,8.7068,114.9,114.88,8.7076]
[1743742333780,10.00585182,114.89,114.85,10.00585182]
[1743742334185,0.0583995,114.88,114.86,10.00585182]
[1743742335185,0.0583995,114.88,114.87,8.7088]
[1743742344186,0.0583995,114.88,114.87,18.71465182]
[1743742344490,2.1982,114.91,114.9,8.7065]
[1743742346886,0.05778159,114.92,114.91,8.7057]
[1743742347492,10.06363341,114.92,114.91,8.7057]
[1743742347693,18.76863341,114.92,114.9,8.706]
[1743742347885,50.02863341,114.92,114.9,8.706]
[1743742348285,41.32363341,114.92,114.91,8.7057]
[1743742349697,10.06363341,114.92,114.91,8.7057]
[1743742349997,18.76873341,114.92,114.9,8.706]
[1743742350296,10.06363341,114.92,114.89,0.0583995]
[1743742350497,18.76893341,114.92,114.9,8.706]
[1743742350697,10.06363341,114.92,114.9,8.706]
[1743742351101,0.05778159,114.92,114.89,0.0583995]
[1743742351399,0.05778159,114.92,114.91,8.7057]
[1743742352701,8.76278159,114.92,114.9,8.7061]
[1743742352902,0.03705288,114.92,114.91,10.00585182]
[1743742353400,0.03705288,114.92,114.91,18.71155182]
[1743742354503,5.288e-05,114.92,114.91,18.71155182]
[1743742356508,2.3889,114.98,114.91,10.00585182]
[1743742356809,2.3889,114.98,114.95,10.00585182]
[1743742357009,2.3889,114.98,114.97,8.7012]
[1743742358009,2.3889,114.98,114.96,8.76279786]
[1743742358510,11.0896,114.98,114.96,0.06129786]
[1743742358713,2.3889,114.98,114.96,0.06129786]
[1743742358910,10.00585182,114.97,114.92,10.00585182]
[1743742359101,8.703,114.95,114.92,8.7046]
[1743742359813,8.703,114.95,114.93,8.704]
[1743742360013,8.75830733,114.95,114.93,8.704]
[1743742360512,10.06115915,114.95,114.92,0.05488323]
[1743742361111,8.7037,114.94,114.92,8.75948323]
[1743742361312,0.05530733,114.95,114.92,10.06073505]
[1743742361511,0.05530733,114.95,114.93,10.00585182]
[1743742361712,0.05530733,114.95,114.94,8.7034]
[1743742364315,0.05530733,114.95,114.92,10.06073505]
[1743742364517,0.05530733,114.95,114.92,0.05488323]
[1743742364915,8.75830733,114.95,114.92,0.05488323]
[1743742365212,0.05530733,114.95,114.92,0.05488323]
[1743742365615,0.05530733,114.95,114.93,8.7038]
[1743742366213,0.05530733,114.95,114.92,8.75958323]
[1743742366515,10.06115915,114.95,114.92,8.75958323]
[1743742366717,10.00585182,114.94,114.92,0.05488323]
[1743742367316,18.70965182,114.94,114.92,8.75988323]
[1743742368918,8.7038,114.94,114.92,8.75988323]
[1743742369317,8.7038,114.94,114.92,0.05488323]
[1743742370117,8.7038,114.94,114.92,8.75978323]
[1743742371418,8.7042,114.93,114.92,0.05488323]
[1743742372919,8.7038,114.94,114.92,8.75988323]
[1743742373418,8.75840733,114.95,114.93,8.7042]
[1743742374119,0.05530733,114.95,114.92,0.05488323]
[1743742374619,8.7034,114.94,114.92,8.75948323]
[1743742377821,8.75840733,114.95,114.93,8.7042]
[1743742378217,0.05530733,114.95,114.93,8.7042]
[1743742378424,0.05530733,114.95,114.94,8.7034]
[1743742379024,8.75800733,114.95,114.93,8.7038]
[1743742379625,0.05530733,114.95,114.94,8.7034]
[1743742380225,8.75800733,114.95,114.93,8.7037]
[1743742380726,8.75800733,114.95,114.94,8.7034]
[1743742382328,8.75800733,114.95,114.93,8.7037]
[1743742383627,8.75800733,114.95,114.94,8.7034]
[1743742383828,8.75800733,114.95,114.92,0.05488323]
[1743742384430,8.75800733,114.95,114.93,8.7038]
[1743742384623,8.7034,114.94,114.92,0.05488323]
[1743742384828,8.7034,114.94,114.92,8.75918323]
[1743742385427,8.75850733,114.95,114.92,8.75918323]
[1743742385631,0.05530733,114.95,114.92,0.05488323]
[1743742386630,8.7039,114.94,114.92,0.05488323]
[1743742387933,8.7042,114.93,114.92,0.05488323]
[1743742390938,8.7066,114.9,114.88,12.29205182]
[1743742391137,8.7066,114.9,114.88,10.00585182]
[1743742391326,10.00585182,114.91,114.85,545.1816]
[1743742391631,8.7081,114.88,114.86,10.00585182]
[1743742391831,10.00585182,114.9,114.85,595.13735182]
[1743742392033,10.00585182,114.9,114.85,52.23735182]
[1743742392229,10.00585182,114.88,114.81,302.36635855]
[1743742392429,10.00585182,114.88,114.84,8.7107]
[1743742392731,0.05986434,114.86,114.83,10.00585182]
[1743742393529,0.05986434,114.86,114.85,8.7103]
[1743742398133,6.434e-05,114.86,114.85,18.71615182]
[1743742403131,12.25095182,114.93,114.91,8.7057]
[1743742404037,12.25095182,114.93,114.92,8.705]
[1743742404239,12.31773525,114.93,114.92,8.705]
[1743742405940,12.31773525,114.93,114.91,8.76706988]
[1743742406140,21.02203525,114.93,114.91,8.76706988]
[1743742407344,12.31773525,114.93,114.92,8.705]
[1743742408040,21.02203525,114.93,114.91,8.76706988]
[1743742408344,10.00585182,114.92,114.91,8.76706988]
[1743742414451,12.31773525,114.93,114.91,0.06176988]
[1743742415249,21.02223525,114.93,114.91,8.76696988]
[1743742417451,10.00585182,114.92,114.91,8.76696988]
[1743742419154,18.71085182,114.92,114.91,0.06176988]
[1743742419852,10.00585182,114.92,114.91,8.76746988]
[1743742421054,18.71085182,114.92,114.91,8.76746988]
[1743742421654,10.00585182,114.92,114.91,8.76746988]
[1743742423755,10.07263525,114.93,114.92,8.705]
[1743742424156,0.06678343,114.93,114.92,8.705]
[1743742427661,8.77098343,114.93,114.91,8.76706988]
[1743742427849,0.06678343,114.93,114.91,0.06176988]
[1743742428051,10.07263525,114.93,114.91,0.06176988]
[1743742428356,8.705,114.92,114.91,0.06176988]
[1743742430554,10.07263525,114.93,114.91,0.06176988]
[1743742430859,18.77723525,114.93,114.91,0.06176988]
[1743742431058,0.06678343,114.93,114.91,0.06176988]
[1743742431859,8.77158343,114.93,114.91,8.76716988]
[1743742432958,8.705,114.92,114.91,0.06176988]
[1743742441160,8.7071,114.9,114.88,8.7076]
[1743742442262,8.76357687,114.9,114.88,8.7076]
[1743742442559,0.05647687,114.9,114.89,8.7072]
[1743742453672,0.05647687,114.9,114.88,8.7077]
[1743742454673,0.05647687,114.9,114.89,8.7072]
[1743742466071,7.687e-05,114.9,114.89,8.7072]
[1743742472283,7.687e-05,114.9,114.89,18.71305182]
[1743742472980,7.687e-05,114.9,114.89,8.7072]
[1743742474284,7.687e-05,114.9,114.89,18.71305182]
[1743742476385,7.687e-05,114.9,114.89,8.7072]
[1743742481995,7.687e-05,114.9,114.89,18.71305182]
[1743742483492,10.00585182,114.99,114.89,18.70585182]
[1743742483693,10.00585182,114.98,114.93,10.00585182]
[1743742483889,10.00585182,114.99,114.94,41.22585182]
[1743742484295,10.00585182,114.99,114.94,31.22]
[1743742484495,10.00585182,114.97,114.94,31.22]
[1743742484693,10.00585182,114.97,114.96,8.7016]
[1743742486502,18.76978129,114.98,114.96,8.7016]
[1743742487003,10.06938129,114.98,114.95,8.75857687]
[1743742487204,10.00585182,114.97,114.95,8.75857687]
[1743742487805,10.00585182,114.96,114.95,8.75857687]
[1743742488707,10.00585182,114.97,114.96,8.7016]
[1743742491510,18.70705182,114.97,114.95,8.75877687]
[1743742492002,10.00585182,114.97,114.95,8.75877687]
[1743742492206,49.99048129,114.98,114.96,8.7019]
[1743742492707,49.99048129,114.98,114.95,8.75877687]
[1743742493207,49.99048129,114.98,114.96,8.7019]
[1743742493407,8.7015,114.97,114.95,0.05647687]
[1743742493609,10.00585182,114.96,114.9,10.00585182]
[1743742493907,10.00585182,114.95,114.92,8.7046]
[1743742494110,8.7037,114.94,114.92,8.7046]
[1743742494309,10.00585182,114.95,114.92,8.7046]
[1743742494609,10.00585182,114.95,114.93,8.7041]
[1743742494808,10.06197462,114.95,114.93,8.7041]
[1743742495110,10.06197462,114.95,114.92,8.7045]
[1743742495603,8.7039,114.94,114.92,8.7045]
[1743742495809,10.00585182,114.94,114.91,8.7053]
[1743742496008,10.00585182,114.93,114.91,8.7053]
[1743742496204,18.71035182,114.93,114.91,8.7053]
[1743742496913,8.76219227,114.94,114.92,8.7048]
[1743742497408,18.76804409,114.94,114.92,8.7048]
[1743742497908,8.7043,114.93,114.91,8.7053]
[1743742498209,18.76804409,114.94,114.91,8.7053]
[1743742499103,8.7042,114.93,114.91,8.7053]
[1743742500607,18.76804409,114.94,114.91,8.7053]
[1743742501808,18.76804409,114.94,114.92,8.7049]
[1743742502008,0.05829227,114.94,114.9,10.00585182]
[1743742502708,0.05829227,114.94,114.92,8.7043]
[1743742503014,8.76179227,114.94,114.92,8.7043]
[1743742505614,8.76179227,114.94,114.91,8.7052]
[1743742506216,8.7043,114.93,114.91,8.7052]
[1743742507219,8.7043,114.93,114.9,8.706]
[1743742508114,8.7043,114.93,114.91,8.7056]
[1743742511615,8.7057,114.91,114.87,2.2908]
[1743742511812,8.7057,114.91,114.87,31.22]
[1743742512018,0.0557773,114.9,114.87,41.22585182]
[1743742512213,0.0557773,114.9,114.89,8.7072]
[1743742512620,0.0557773,114.9,114.87,41.22585182]
[1743742512621,8.7622773,114.9,114.87,10.00585182]
[1743742512816,8.7622773,114.9,114.88,8.7077]
[1743742513718,0.0557773,114.9,114.88,8.7077]
[1743742514223,8.7622773,114.9,114.88,8.7077]
[1743742518618,8.7622773,114.9,114.89,8.7072]
[1743742520726,0.0557773,114.9,114.89,8.7072]
[1743742522619,0.0557773,114.9,114.89,18.71305182]
[1743742522820,12.24355182,114.95,114.92,8.7047]
[1743742523025,43.46355182,114.95,114.92,8.7047]
[1743742523225,8.7037,114.94,114.92,8.7047]
[1743742523726,8.7037,114.94,114.9,10.00585182]
[1743742523923,8.7037,114.94,114.91,10.00585182]
[1743742524127,0.05847111,114.93,114.92,10.00585182]
[1743742524324,0.05847111,114.93,114.92,18.71015182]
[1743742533636,0.05847111,114.93,114.92,8.7043]
[1743742533835,8.76267111,114.93,114.92,8.7043]
[1743742534137,8.76267111,114.93,114.91,49.98692912]
[1743742534637,0.05847111,114.93,114.92,8.705]
[1743742535436,8.76267111,114.93,114.91,49.98682912]
[1743742535639,8.76267111,114.93,114.91,8.7609773]
[1743742537536,8.76267111,114.93,114.92,8.705]
[1743742537727,0.05847111,114.93,114.92,8.705]
[1743742538129,0.05847111,114.93,114.92,18.71085182]
[1743742539736,0.05847111,114.93,114.92,49.93085182]
[1743742539934,0.05847111,114.93,114.92,39.925]
[1743742540135,0.05847111,114.93,114.92,49.93085182]
[1743742546639,0.05847111,114.93,114.92,39.925]
[1743742548238,0.05847111,114.93,114.92,8.705]
[1743742550341,0.05847111,114.93,114.92,18.71085182]
[1743742551343,0.05847111,114.93,114.92,8.705]
[1743742552243,0.05847111,114.93,114.91,8.7610773]
[1743742552441,0.05847111,114.93,114.91,0.0557773]
[1743742552839,8.76337111,114.93,114.91,0.0557773]
[1743742553547,8.705,114.92,114.91,8.7614773]
[1743742553747,8.705,114.92,114.91,0.0557773]
[1743742553947,0.05847111,114.93,114.91,0.0557773]
[1743742554247,8.76337111,114.93,114.91,8.7614773]
[1743742554843,8.705,114.92,114.91,0.0557773]
[1743742555248,0.05847111,114.93,114.91,0.0557773]
[1743742555548,8.76307111,114.93,114.91,8.7614773]
[1743742555749,0.05847111,114.93,114.91,8.7614773]
[1743742556047,8.705,114.92,114.91,0.0557773]
[1743742556246,0.05847111,114.93,114.91,0.0557773]
[1743742556650,8.705,114.92,114.91,0.0557773]
[1743742568366,18.71085182,114.92,114.91,0.0557773]
[1743742570268,10.00585182,114.92,114.91,8.7614773]
[1743742571266,0.05847111,114.93,114.92,8.705]
[1743742577570,0.05847111,114.93,114.92,18.71085182]
[1743742581378,0.05847111,114.93,114.92,8.705]
[1743742586285,10.06432293,114.93,114.91,0.0557773]
[1743742587486,8.705,114.92,114.91,0.0557773]
[1743742588483,18.71085182,114.92,114.91,0.0557773]
[1743742590087,8.705,114.92,114.91,0.0557773]
[1743742592184,18.71085182,114.92,114.91,0.0557773]
[1743742592487,10.00585182,114.92,114.85,12.29965182]
[1743742592687,10.00585182,114.89,114.85,43.49965182]
[1743742592985,10.00585182,114.88,114.85,8.71]
[1743742593183,10.00585182,114.88,114.83,41.20585182]
[1743742593584,8.76880901,114.87,114.83,41.20585182]
[1743742594190,8.76880901,114.87,114.84,10.00585182]
[1743742594392,8.76880901,114.87,114.85,8.7099]
[1743742595591,0.05970901,114.87,114.85,8.7099]
[1743742596191,0.05970901,114.87,114.86,8.7095]
[1743742596490,0.05970901,114.87,114.84,10.00585182]
[1743742596690,0.05970901,114.87,114.85,8.71]
[1743742597597,0.05970901,114.87,114.86,18.71535182]
[1743742597791,10.00585182,114.91,114.86,41.20585182]
[1743742597987,45.82565182,114.92,114.87,10.00585182]
[1743742598395,54.53095182,114.92,114.89,8.7068]
[1743742598592,54.53095182,114.92,114.87,10.00585182]
[1743742598993,0.06454777,114.91,114.89,8.7067]
[1743742599497,0.06454777,114.91,114.88,0.05658642]
[1743742600396,0.06454777,114.91,114.88,10.06243824]
[1743742600792,0.06454777,114.91,114.9,8.7065]
[1743742612807,8.77034777,114.91,114.89,8.7067]
[1743742614115,8.7065,114.9,114.88,8.76418642]
[1743742615217,18.77659959,114.91,114.89,8.7072]
[1743742615419,10.07039959,114.91,114.89,8.7072]
[1743742618720,0.06454777,114.91,114.88,0.05658642]
[1743742619018,0.06454777,114.91,114.88,10.06243824]
[1743742619421,0.06454777,114.91,114.9,8.7065]
[1743742624621,0.06454777,114.91,114.89,8.7065]
[1743742624821,10.07039959,114.91,114.89,8.7065]
[1743742625018,18.77649959,114.91,114.89,8.7065]
[1743742625519,10.07039959,114.91,114.88,8.76408642]
[1743742625822,8.7072,114.9,114.88,8.76408642]
[1743742628125,8.7072,114.9,114.88,0.05658642]
[1743742628319,8.7072,114.89,114.88,0.05658642]
[1743742628527,10.00585182,114.89,114.84,31.2]
[1743742628825,10.00585182,114.89,114.86,8.7092]
[1743742629725,8.7083,114.88,114.86,8.7092]
[1743742629926,10.0674503,114.89,114.86,8.7092]
[1743742630529,18.7751503,114.89,114.87,8.7087]
[1743742630719,0.06159848,114.89,114.87,10.00585182]
[1743742630923,0.06159848,114.89,114.88,10.00585182]
[1743742631225,0.06159848,114.89,114.88,18.71385182]
[1743742633928,9.848e-05,114.89,114.88,18.71385182]
[1743742634128,9.848e-05,114.89,114.88,21.05615182]
[1743742638230,9.848e-05,114.89,114.88,23.36235182]
[1743742652140,9.848e-05,114.89,114.88,8.708]
[1743742657245,9.848e-05,114.89,114.88,18.71385182]
[1743742665051,48.01645898,115.01,114.88,18.70585182]
[1743742665344,4.4488,115.0,114.96,10.00585182]
[1743742665544,4.4488,115.0,114.99,8.6996]
[1743742666951,50.44364553,115.01,115.0,8.6989]
[1743742667351,2.42718655,115.01,115.0,8.6989]
[1743742669455,0.06438655,115.01,115.0,8.6989]
[1743742670353,10.07023837,115.01,115.0,8.6989]
[1743742673254,0.06438655,115.01,115.0,8.6989]
[1743742677566,10.07023837,115.01,114.98,0.05957184]
[1743742677762,10.00585182,114.99,114.98,0.05957184]
[1743742677961,10.00585182,114.99,114.95,41.16585182]
[1743742677962,10.00585182,114.99,114.94,10.00585182]
[1743742678163,10.00585182,114.99,114.94,41.16585182]
[1743742678367,10.00585182,114.98,114.97,8.7008]
[1743742680966,18.7677438,114.99,114.97,8.7008]
[1743742681367,10.0680438,114.99,114.97,8.7008]
[1743742682272,0.06219198,114.99,114.95,10.00585182]
[1743742683274,8.76189198,114.99,114.95,10.00585182]
[1743742683873,8.76189198,114.99,114.97,8.7007]
[1743742684074,18.7677438,114.99,114.97,8.7007]
[1743742686675,8.76189198,114.99,114.97,8.7007]
[1743742687274,0.06219198,114.99,114.97,8.7007]
[1743742688275,8.76199198,114.99,114.97,8.7007]
[1743742688471,10.0680438,114.99,114.96,8.7016]
[1743742688774,18.70735182,114.97,114.93,31.16]
[1743742689175,10.06756102,114.96,114.91,584.18585182]
[1743742689374,18.76976102,114.96,114.91,553.02585182]
[1743742689673,18.76976102,114.96,114.91,584.18585182]
[1743742689874,18.76976102,114.96,114.94,8.7032]
[1743742692874,18.76976102,114.96,114.93,8.7038]
[1743742693378,18.76976102,114.96,114.91,41.16585182]
[1743742693581,10.06756102,114.96,114.94,8.7027]
[1743742694282,18.76956102,114.96,114.94,8.7027]
[1743742694879,10.06756102,114.96,114.94,8.7027]
[1743742698183,10.06756102,114.96,114.91,41.16585182]
[1743742698685,0.0617092,114.96,114.92,10.00585182]
[1743742700483,0.0617092,114.96,114.95,8.7027]
[1743742703988,8.7636092,114.96,114.94,8.703]
[1743742704287,10.06756102,114.96,114.91,10.00585182]
[1743742704889,18.76996102,114.96,114.93,8.7037]
[1743742705586,18.76996102,114.96,114.94,8.7033]
[1743742709191,10.06756102,114.96,114.91,10.00585182]
[1743742710896,10.06756102,114.96,114.95,8.7027]
[1743742717502,0.0617092,114.96,114.95,8.7027]
[1743742717708,9.2e-06,114.96,114.95,8.7027]
[1743742720501,9.2e-06,114.96,114.95,18.70855182]
[1743742727809,10.00585182,115.02,114.96,17.4038]
[1743742728012,12.39565182,115.03,114.98,10.00585182]
[1743742728304,12.39565182,115.03,115.01,8.6977]
[1743742728509,10.00585182,115.02,114.98,10.00585182]
[1743742728914,0.05797432,115.01,115.0,8.6982]
[1743742739018,18.76222614,115.01,114.99,0.06628315]
[1743742739214,10.00585182,115.0,114.99,0.06628315]
[1743742739416,18.70475182,115.0,114.99,0.06628315]
[1743742741219,8.7001,114.99,114.96,8.7015]
[1743742741412,10.00585182,114.98,114.96,8.7015]
[1743742742418,10.06824146,114.98,114.96,8.7015]
[1743742743119,10.06824146,114.98,114.97,8.7012]
[1743742743712,18.76884146,114.98,114.96,8.7015]
[1743742756739,10.06824146,114.98,114.97,8.7012]
[1743742756940,0.06238964,114.98,114.97,8.7012]
[1743742760747,0.06238964,114.98,114.97,18.70705182]
[1743742760947,10.00585182,115.02,114.97,10.00585182]
[1743742761245,18.70325182,115.02,114.98,10.00585182]
[1743742761944,18.70325182,115.02,115.0,8.6984]
[1743742762244,0.06692629,115.01,115.0,8.6984]
[1743742780355,0.0118537,115.01,115.0,49.84425182]
[1743742781452,0.0118537,115.01,115.0,39.8384]
[1743742788362,0.0118537,115.01,115.0,8.6984]
[1743742797571,0.0118537,115.01,114.99,8.75699619]
[1743742797773,10.01770552,115.01,114.99,0.05779619]
[1743742798670,8.6989,115.0,114.99,0.05779619]
[1743742798971,10.01770552,115.01,114.99,0.05779619]
[1743742799172,18.71610552,115.01,114.99,8.75749619]
[1743742801074,10.01770552,115.01,115.0,8.6989]
[1743742801371,0.0118537,115.01,115.0,8.6989]
[1743742801672,8.7103537,115.01,114.99,8.75709619]
[1743742801972,0.0118537,115.01,114.99,0.05779619]
[1743742802176,8.7103537,115.01,114.99,8.75709619]
[1743742802874,8.7103537,115.01,115.0,8.6989]
[1743742803074,0.0118537,115.01,115.0,8.6989]
[1743742803774,8.7102537,115.01,114.99,8.75709619]
[1743742804174,8.7102537,115.01,114.99,8.75699619]
[1743742804378,0.0118537,115.01,114.99,0.05779619]
[1743742804779,0.0118537,115.01,115.0,8.6989]
[1743742809571,0.0118537,115.01,115.0,18.70475182]
[1743742810172,12.40075182,115.06,115.04,8.6957]
[1743742810385,12.23345182,115.07,115.02,41.12585182]
[1743742810569,60.3091108,115.09,115.07,8.6933]
[1743742810767,58.0223108,115.09,115.07,8.6933]
[1743742811275,58.08377318,115.09,115.07,8.75526287]
[1743742811476,66.77617318,115.09,115.07,8.75526287]
[1743742811677,66.77617318,115.09,115.07,0.06196287]
[1743742812381,18.7597142,115.09,115.07,0.06196287]
[1743742812679,18.69875182,115.08,115.07,0.06196287]
[1743742813478,10.00585182,115.06,115.02,31.12]
[1743742813679,10.00585182,115.05,115.01,10.00585182]
[1743742813980,10.00585182,115.05,115.0,31.12]
[1743742813981,10.00585182,115.05,115.03,8.6961]
[1743742814383,10.00585182,115.05,115.01,10.00585182]
[1743742814583,0.06291575,115.05,115.04,8.6959]
[1743742820673,0.06291575,115.05,115.04,18.70175182]
[1743742821679,0.06291575,115.05,115.04,8.6959]
[1743742827287,12.30635182,115.1,115.04,10.00585182]
[1743742827477,10.00585182,115.1,115.06,10.00585182]
[1743742827680,2.2276,115.11,115.06,10.00585182]
[1743742827880,12.23345182,115.11,115.06,41.10585182]
[1743742828189,20.92435182,115.11,115.09,8.692]
[1743742828584,0.05729796,115.1,115.09,8.692]
[1743742829484,0.05729796,115.1,115.08,8.6924]
[1743742829986,8.74869796,115.1,115.08,8.6924]
[1743742830792,0.05729796,115.1,115.07,10.06073895]
[1743742831591,0.05729796,115.1,115.08,8.6929]
[1743742832488,8.74869796,115.1,115.08,8.6929]
[1743742837896,8.6921,115.09,115.07,8.74808713]
[1743742838095,18.69795182,115.09,115.07,8.74808713]
[1743742838697,18.69795182,115.09,115.07,0.05488713]
[1743742841694,8.6929,115.08,115.07,0.05488713]
[1743742841892,18.69875182,115.08,115.07,0.05488713]
[1743742848505,8.6953,115.05,115.03,8.6961]
[1743742848800,18.70115182,115.05,115.03,8.6961]
[1743742849209,8.6959,115.04,115.02,8.6968]
[1743742849600,8.75368999,115.04,115.02,8.76298507]
[1743742850297,8.6966,115.03,115.02,0.06618507]
[1743742850503,18.70245182,115.03,115.02,0.06618507]
[1743742853799,49.83994181,115.04,115.02,0.06618507]
[1743742854004,8.75408999,115.04,115.02,0.06618507]
[1743742854305,0.05778999,115.04,115.02,0.06618507]
[1743742854907,0.05778999,115.04,115.03,8.6966]
[1743742860112,8.75378999,115.04,115.02,8.76318507]
[1743742860911,18.75964181,115.04,115.02,8.76318507]
[1743742861315,10.06364181,115.04,115.02,8.76318507]
[1743742862210,10.06364181,115.04,115.03,8.6966]
[1743742862415,0.05778999,115.04,115.03,8.6966]
[1743742865111,0.00290286,115.04,115.03,18.70245182]
[1743742866416,0.00290286,115.04,115.03,8.6966]
[1743742872620,0.00290286,115.04,115.03,18.70245182]